bitfinex/quotes_BTCUSD_20241014
["timestamp","ask_amount","ask_price","bid_price","bid_amount"]
[1728910748176,0.53052773,64961.0,64960.0,0.000824]
[1728910748409,0.64703881,64961.0,64960.0,0.000824]
[1728910748638,2.87640073,64961.0,64960.0,0.000824]
[1728910748857,3.09911181,64961.0,64960.0,0.000824]
[1728910749518,3.08611181,64961.0,64960.0,0.000824]
[1728910749741,2.98360073,64961.0,64960.0,0.000824]
[1728910749967,2.47184894,64961.0,64960.0,0.000824]
[1728910750187,2.43986794,64961.0,64960.0,0.000824]
[1728910750626,1.92005694,64961.0,64960.0,0.000824]
[1728910751116,1.94948681,64961.0,64960.0,0.000824]
[1728910751553,0.72593481,64961.0,64960.0,0.000824]
[1728910751874,1.94948681,64961.0,64960.0,0.000824]
[1728910753206,1.37995781,64961.0,64960.0,0.000824]
[1728910753428,0.43601665,64961.0,64960.0,0.000824]
[1728910753943,0.43601665,64961.0,64960.0,0.01151845]
[1728910754185,0.43601665,64961.0,64960.0,0.000824]
[1728910754646,0.42201665,64961.0,64960.0,0.000824]
[1728910754878,0.41901665,64961.0,64960.0,0.01151845]
[1728910755150,0.42701665,64961.0,64960.0,0.01151845]
[1728910757306,0.51001665,64961.0,64960.0,0.01151845]
[1728910757542,0.62001665,64961.0,64960.0,0.01151845]
[1728910757783,0.62001665,64961.0,64960.0,0.000824]
[1728910757784,3.28193765,64961.0,64960.0,0.000824]
[1728910758022,0.62001665,64961.0,64960.0,0.000824]
[1728910758259,3.74385765,64961.0,64960.0,0.000824]
[1728910759385,3.03548265,64961.0,64960.0,0.000824]
[1728910760310,1.69101765,64961.0,64960.0,0.000824]
[1728910762311,1.86430594,64961.0,64960.0,0.000824]
[1728910765605,1.85630594,64961.0,64960.0,0.000824]
[1728910766066,1.84530594,64961.0,64960.0,0.000824]
[1728910766316,1.55775294,64961.0,64960.0,0.000824]
[1728910767848,1.57175294,64961.0,64960.0,0.000824]
[1728910769929,1.51516401,64961.0,64960.0,0.000824]
[1728910773039,3.53799401,64961.0,64960.0,0.000824]
[1728910773262,0.74571601,64961.0,64960.0,0.000824]
[1728910773493,3.53799401,64961.0,64960.0,0.000824]
[1728910774014,1.82214465,64961.0,64960.0,0.000824]
[1728910774300,1.73404401,64961.0,64960.0,0.000824]
[1728910775276,1.74021101,64961.0,64960.0,0.000824]
[1728910776199,1.72512801,64961.0,64960.0,0.000824]
[1728910781500,1.72512801,64961.0,64959.0,0.000824]
[1728910781501,1.57119001,64961.0,64959.0,0.000824]
[1728910781716,1.33461104,64960.0,64959.0,0.000824]
[1728910782178,1.33516122,64960.0,64959.0,0.000824]
[1728910783540,1.33515524,64960.0,64959.0,0.000824]
[1728910783967,1.34815524,64960.0,64959.0,0.000824]
[1728910785116,1.34815627,64960.0,64959.0,0.000824]
[1728910785367,1.36215627,64960.0,64959.0,0.000824]
[1728910786050,1.20821627,64960.0,64959.0,0.000824]
[1728910786286,0.6501518,64960.0,64959.0,0.000824]
[1728910787045,0.58096918,64960.0,64959.0,0.000824]
[1728910787292,1.00513701,64960.0,64959.0,0.01153323]
[1728910787514,1.15475426,64960.0,64959.0,0.000824]
[1728910787730,1.1174549,64960.0,64959.0,0.01153323]
[1728910787969,1.25721963,64960.0,64959.0,0.000824]
[1728910788192,1.18803701,64960.0,64959.0,0.000824]
[1728910789286,1.25720942,64960.0,64959.0,0.000824]
[1728910790445,1.18803701,64960.0,64959.0,0.000824]
[1728910791323,1.16356753,64960.0,64959.0,0.000824]
[1728910791990,1.16361739,64960.0,64959.0,0.000824]
[1728910792430,1.72402039,64960.0,64959.0,0.000824]
[1728910793237,1.63174065,64960.0,64959.0,0.000824]
[1728910795370,1.63338865,64960.0,64959.0,0.000824]
[1728910796274,1.75008801,64960.0,64959.0,0.000824]
[1728910800227,1.74942801,64960.0,64959.0,0.000824]
[1728910800734,1.18115865,64960.0,64959.0,0.000824]
[1728910801003,1.18115865,64960.0,64959.0,0.0164664]
[1728910801004,1.14450665,64960.0,64959.0,0.0164664]
[1728910801263,1.06978865,64960.0,64959.0,0.000824]
[1728910801487,1.16214161,64960.0,64959.0,0.000824]
[1728910801707,1.11446317,64960.0,64959.0,0.000824]
[1728910802169,1.03846817,64960.0,64959.0,0.000824]
[1728910802398,1.06155755,64960.0,64959.0,0.000824]
[1728910803283,1.15517438,64960.0,64959.0,0.000824]
[1728910803501,1.06281001,64960.0,64959.0,0.000824]
[1728910803712,1.15517438,64960.0,64959.0,0.000824]
[1728910803927,1.42619338,64960.0,64959.0,0.000824]
[1728910804134,1.41209338,64960.0,64959.0,0.000824]
[1728910804319,1.43517591,64960.0,64959.0,0.000824]
[1728910804832,1.31770791,64960.0,64959.0,0.000824]
[1728910809123,1.24199026,64960.0,64959.0,0.000824]
[1728910809350,1.20226101,64960.0,64959.0,0.000824]
[1728910809567,1.08556165,64960.0,64959.0,0.000824]
[1728910809779,1.20226101,64960.0,64959.0,0.000824]
[1728910810255,1.08556165,64960.0,64959.0,0.000824]
[1728910816799,0.57219654,64957.0,64956.0,0.000824]
[1728910817028,0.72572501,64957.0,64956.0,0.000824]
[1728910817260,4.65282537,64957.0,64956.0,0.000824]
[1728910817915,0.88357832,64957.0,64956.0,0.000824]
[1728910818133,4.68364932,64957.0,64956.0,0.000824]
[1728910818355,4.37396868,64957.0,64956.0,0.000824]
[1728910818592,4.21811537,64957.0,64956.0,0.000824]
[1728910818810,4.23211537,64957.0,64956.0,0.000824]
[1728910819024,4.10141601,64957.0,64956.0,0.000824]
[1728910819247,1.87534365,64957.0,64956.0,0.000824]
[1728910819465,1.42794801,64957.0,64956.0,0.000824]
[1728910819925,1.44686357,64957.0,64956.0,0.000824]
[1728910820151,1.58530073,64957.0,64956.0,0.000824]
[1728910820368,1.57130073,64957.0,64956.0,0.000824]
[1728910820806,1.44686357,64957.0,64956.0,0.000824]
[1728910821482,1.46860406,64957.0,64956.0,0.000824]
[1728910821728,1.44686357,64957.0,64956.0,0.000824]
[1728910828907,1.5621418,64957.0,64956.0,0.000824]
[1728910829628,1.44686357,64957.0,64956.0,0.000824]
[1728910830381,1.5621418,64957.0,64956.0,0.000824]
[1728910830850,1.44686357,64957.0,64956.0,0.000824]
[1728910831623,1.44886357,64957.0,64956.0,0.000824]
[1728910831890,1.44686357,64957.0,64956.0,0.000824]
[1728910832119,1.44886357,64957.0,64956.0,0.000824]
[1728910832379,1.44686357,64957.0,64956.0,0.000824]
[1728910832838,1.56213018,64957.0,64956.0,0.000824]
[1728910833301,1.53908789,64957.0,64956.0,0.000824]
[1728910833518,1.44686357,64957.0,64956.0,0.000824]
[1728910833750,0.88888431,64957.0,64956.0,0.000824]
[1728910834021,0.79665757,64957.0,64956.0,0.000824]
[1728910835413,0.88888431,64957.0,64956.0,0.000824]
[1728910836070,0.64271057,64957.0,64956.0,0.000824]
[1728910836302,0.8658578,64957.0,64956.0,0.000824]
[1728910836537,0.79665757,64957.0,64956.0,0.000824]
[1728910836784,3.12565331,64957.0,64956.0,0.000824]
[1728910837875,3.03342657,64957.0,64956.0,0.000824]
[1728910838545,0.63354057,64957.0,64956.0,0.000824]
[1728910838766,3.52030457,64957.0,64956.0,0.000824]
[1728910838989,3.02030457,64957.0,64956.0,0.000824]
[1728910840650,2.95858431,64957.0,64956.0,0.000824]
[1728910840883,0.47959357,64957.0,64956.0,0.000824]
[1728910841110,0.74643757,64957.0,64956.0,0.000824]
[1728910841326,0.81565917,64957.0,64956.0,0.000824]
[1728910843581,0.28699421,64957.0,64956.0,0.000824]
[1728910843805,0.28699421,64957.0,64956.0,0.02713797]
[1728910843806,0.18699421,64957.0,64956.0,0.02713797]
[1728910844032,0.18699421,64957.0,64956.0,0.000824]
[1728910844258,0.18699421,64957.0,64956.0,0.01157757]
[1728910844483,0.18699421,64957.0,64956.0,0.000824]
[1728910844484,0.17299421,64957.0,64956.0,0.000824]
[1728910844718,0.15899421,64957.0,64956.0,0.01157757]
[1728910844937,0.15899421,64957.0,64956.0,0.000824]
[1728910844938,0.27299421,64957.0,64956.0,0.000824]
[1728910845153,0.27299421,64957.0,64956.0,0.01157757]
[1728910845365,0.27299421,64957.0,64956.0,0.000824]
[1728910845588,0.27299421,64957.0,64956.0,0.01157757]
[1728910845799,0.28699421,64957.0,64956.0,0.01157757]
[1728910846444,0.28699421,64957.0,64956.0,0.000824]
[1728910847908,0.51654121,64957.0,64956.0,0.000824]
[1728910848139,1.2341508,64957.0,64956.0,0.000824]
[1728910848579,1.18799021,64957.0,64956.0,0.000824]
[1728910848790,1.23415719,64957.0,64956.0,0.000824]
[1728910849211,1.18799021,64957.0,64956.0,0.000824]
[1728910849465,1.2341573,64957.0,64956.0,0.000824]
[1728910849740,1.2572311,64957.0,64956.0,0.000824]
[1728910851168,1.18799021,64957.0,64956.0,0.000824]
[1728910851863,0.5857821,64957.0,64956.0,0.000824]
[1728910852133,2.4700921,64957.0,64956.0,0.000824]
[1728910853055,1.7263551,64957.0,64956.0,0.000824]
[1728910854715,1.65711421,64957.0,64956.0,0.000824]
[1728910856357,1.15022521,64957.0,64956.0,0.000824]
[1728910857565,0.99590121,64957.0,64956.0,0.000824]
[1728910858674,0.51654121,64957.0,64956.0,0.000824]
[1728910858893,1.58404825,64957.0,64956.0,0.000824]
[1728910861077,1.5840504,64957.0,64956.0,0.000824]
[1728910861521,1.71094547,64957.0,64956.0,0.000824]
[1728910861743,1.61856521,64957.0,64956.0,0.000824]
[1728910862006,1.73404453,64957.0,64956.0,0.000824]
[1728910862463,1.61856521,64957.0,64956.0,0.000824]
[1728910862891,1.73404735,64957.0,64956.0,0.000824]
[1728910863554,1.61856521,64957.0,64956.0,0.000824]
[1728910866673,0.62034121,64957.0,64956.0,0.000824]
[1728910866888,2.48716521,64957.0,64956.0,0.000824]
[1728910867545,2.00149921,64957.0,64956.0,0.000824]
[1728910870854,2.11819857,64957.0,64956.0,0.000824]
[1728910871070,2.36127995,64957.0,64956.0,0.000824]
[1728910871303,2.36127995,64957.0,64944.0,0.000823]
[1728910871304,0.15452618,64945.0,64944.0,0.000823]
[1728910871520,0.82038722,64945.0,64944.0,0.000823]
[1728910871736,3.81606901,64945.0,64944.0,0.000823]
[1728910871950,3.97808058,64945.0,64944.0,0.000823]
[1728910872168,4.1588491,64945.0,64944.0,0.000823]
[1728910872386,3.86138122,64945.0,64944.0,0.000823]
[1728910872633,3.86338122,64945.0,64944.0,0.000823]
[1728910872866,3.87738122,64945.0,64944.0,0.000823]
[1728910873085,3.99408058,64945.0,64944.0,0.000823]
[1728910873304,3.94676837,64945.0,64944.0,0.000823]
[1728910873515,3.96661964,64945.0,64944.0,0.000823]
[1728910873991,4.083319,64945.0,64944.0,0.000823]
[1728910874210,3.96661964,64945.0,64944.0,0.000823]
[1728910874427,3.82806901,64945.0,64944.0,0.000823]
[1728910874638,3.83006901,64945.0,64944.0,0.000823]
[1728910874851,3.84406901,64945.0,64944.0,0.000823]
[1728910875068,0.10255018,64944.0,64943.0,0.000823]
[1728910875316,0.4899369,64940.0,64939.0,0.000825]
[1728910875547,5.67224237,64940.0,64939.0,0.000825]
[1728910875759,5.66150337,64940.0,64939.0,0.000825]
[1728910876188,0.123,64939.0,64920.0,0.000824]
[1728910876409,0.82977237,64937.0,64920.0,0.000824]
[1728910876861,7.12019737,64937.0,64920.0,0.000824]
[1728910877083,6.62040137,64937.0,64920.0,0.000824]
[1728910877514,5.87439745,64937.0,64920.0,0.000824]
[1728910877958,5.87926676,64937.0,64920.0,0.000824]
[1728910878185,5.83318676,64937.0,64920.0,0.000824]
[1728910878400,5.80810651,64937.0,64920.0,0.000824]
[1728910878615,2.54824651,64937.0,64920.0,0.000824]
[1728910878829,2.56224651,64937.0,64922.0,0.154029]
[1728910879039,2.56224651,64937.0,64921.0,0.1021]
[1728910879291,2.57624651,64937.0,64921.0,0.256133]
[1728910879519,2.50909168,64937.0,64921.0,0.256133]
[1728910879748,2.49509168,64937.0,64921.0,0.1021]
[1728910879987,2.49509168,64937.0,64920.0,0.000824]
[1728910880212,0.00055018,64921.0,64920.0,0.000824]
[1728910880426,0.60121101,64921.0,64920.0,0.23169268]
[1728910880682,2.31395101,64921.0,64920.0,0.000824]
[1728910881777,2.32195101,64921.0,64920.0,0.000824]
[1728910882194,4.07619601,64921.0,64920.0,0.000824]
[1728910882418,4.09019601,64921.0,64920.0,0.000824]
[1728910883080,4.07211501,64921.0,64920.0,0.000824]
[1728910883763,2.58849801,64921.0,64920.0,0.000824]
[1728910884621,2.60249801,64921.0,64920.0,0.000824]
[1728910886190,2.60736312,64921.0,64920.0,0.000824]
[1728910886822,1.99434512,64921.0,64920.0,0.000824]
[1728910888640,1.93282012,64921.0,64920.0,0.000824]
[1728910890358,0.45497676,64921.0,64920.0,0.000824]
[1728910891867,3.70789476,64921.0,64920.0,0.000824]
[1728910893211,1.11381676,64921.0,64920.0,0.000824]
[1728910893435,1.11381676,64921.0,64910.0,0.308118]
[1728910893436,0.00055018,64911.0,64910.0,0.45147126]
[1728910893659,0.00055018,64912.0,64911.0,0.154057]
[1728910893895,0.00055018,64911.0,64910.0,0.16416669]
[1728910894098,0.00055018,64911.0,64910.0,0.154059]
[1728910894825,0.01155018,64911.0,64910.0,0.154059]
[1728910895037,0.01155018,64911.0,64910.0,0.2805352]
[1728910895455,0.02055018,64911.0,64910.0,0.2805352]
[1728910895667,0.00055018,64911.0,64910.0,0.2805352]
[1728910896123,0.01355018,64911.0,64910.0,0.2805352]
[1728910897650,0.01355018,64911.0,64910.0,0.154059]
[1728910898054,0.01355018,64911.0,64908.0,0.1092]
[1728910898261,0.01355018,64911.0,64908.0,0.263263]
[1728910898262,0.00055018,64909.0,64908.0,0.263263]
[1728910898721,0.01355018,64911.0,64910.0,0.154059]
[1728910898937,0.00555018,64911.0,64910.0,0.154059]
[1728910899143,0.01051511,64911.0,64910.0,0.154059]
[1728910899353,0.01351511,64911.0,64910.0,0.2805342]
[1728910900816,0.00551511,64911.0,64910.0,0.2805342]
[1728910901269,0.01351511,64911.0,64910.0,0.2805342]
[1728910901496,0.01851511,64911.0,64910.0,0.154059]
[1728910902131,0.01851511,64911.0,64910.0,0.154883]
[1728910902348,0.01851511,64911.0,64910.0,0.000824]
[1728910902808,0.01851511,64911.0,64910.0,0.154883]
[1728910903020,0.27204358,64911.0,64910.0,0.000824]
[1728910903457,0.54279994,64911.0,64910.0,0.000824]
[1728910904359,0.6594993,64911.0,64910.0,0.000824]
[1728910904579,3.96225994,64911.0,64910.0,0.000824]
[1728910904788,4.1115503,64911.0,64910.0,0.000824]
[1728910905001,3.99485094,64911.0,64910.0,0.000824]
[1728910905277,4.1115503,64911.0,64910.0,0.000824]
[1728910905983,4.1901503,64911.0,64910.0,0.000824]
[1728910906624,4.3002503,64911.0,64910.0,0.000824]
[1728910907250,4.41694966,64911.0,64910.0,0.000824]
[1728910907663,4.2922503,64911.0,64910.0,0.000824]
[1728910907896,4.42294966,64911.0,64910.0,0.000824]
[1728910908093,4.3012503,64911.0,64910.0,0.000824]
[1728910908729,1.35947233,64911.0,64910.0,0.000824]
[1728910908946,1.60687105,64911.0,64910.0,0.000824]
[1728910909169,1.62087105,64911.0,64910.0,0.000824]
[1728910909379,1.60687105,64911.0,64910.0,0.000824]
[1728910909798,1.00315569,64911.0,64910.0,0.000824]
[1728910910013,0.89154094,64911.0,64910.0,0.000824]
[1728910910876,0.87754094,64911.0,64910.0,0.000824]
[1728910911092,0.79894094,64911.0,64910.0,0.000824]
[1728910911296,0.81294094,64911.0,64910.0,0.0471272]
[1728910911549,0.69624158,64911.0,64910.0,0.01155692]
[1728910911769,0.79894094,64911.0,64910.0,0.000824]
[1728910911972,0.85577926,64911.0,64910.0,0.000824]
[1728910912180,0.86977926,64911.0,64910.0,0.000824]
[1728910912601,0.85577926,64911.0,64910.0,0.000824]
[1728910912827,0.44658126,64911.0,64910.0,0.000824]
[1728910913063,0.44658126,64911.0,64910.0,0.016313]
[1728910913278,0.46058126,64911.0,64910.0,0.016313]
[1728910913493,0.44658126,64911.0,64910.0,0.01155692]
[1728910913714,0.46058126,64911.0,64910.0,0.01155692]
[1728910913930,0.28704358,64911.0,64910.0,0.16561592]
[1728910914152,0.28704358,64911.0,64910.0,0.18217751]
[1728910914387,0.03351511,64911.0,64910.0,0.17144459]
[1728910914616,0.028,64911.0,64910.0,0.37227751]
[1728910914828,0.028,64911.0,64910.0,0.38903423]
[1728910915265,0.028,64911.0,64910.0,0.39041684]
[1728910915473,0.028,64911.0,64910.0,0.38903423]
[1728910915921,0.014,64911.0,64910.0,0.38903423]
[1728910916366,0.02,64911.0,64910.0,0.3890282]
[1728910916574,0.014,64911.0,64910.0,0.26157751]
[1728910916848,0.00055018,64915.0,64914.0,0.154049]
[1728910917296,0.00055018,64915.0,64914.0,0.16529034]
[1728910918179,0.10055018,64915.0,64914.0,0.01124134]
[1728910918382,0.10055018,64915.0,64914.0,0.09123243]
[1728910918803,0.10055018,64915.0,64914.0,0.01124134]
[1728910919243,0.10355018,64915.0,64914.0,0.01124134]
[1728910919493,0.10955018,64915.0,64914.0,0.01124134]
[1728910919701,0.10955018,64915.0,64914.0,0.154049]
[1728910919913,0.11555018,64915.0,64914.0,0.16529034]
[1728910920128,0.11555018,64915.0,64914.0,0.24518103]
[1728910920559,0.10955018,64915.0,64914.0,0.24518103]
[1728910921210,0.10055018,64915.0,64914.0,0.24518103]
[1728910921417,0.10055018,64915.0,64914.0,0.09113203]
[1728910921622,0.11255018,64915.0,64914.0,0.09113203]
[1728910921852,0.11255018,64915.0,64914.0,0.01124134]
[1728910922268,0.10055018,64915.0,64914.0,0.16529034]
[1728910922473,0.12055018,64915.0,64914.0,0.16529034]
[1728910923328,0.12055018,64915.0,64914.0,0.01124134]
[1728910923734,0.12055018,64915.0,64914.0,0.16529034]
[1728910923943,0.02055018,64915.0,64914.0,0.24518093]
[1728910924425,0.02,64915.0,64914.0,0.24518093]
[1728910925459,0.021648,64915.0,64914.0,0.24455293]
[1728910926094,0.02219818,64915.0,64914.0,0.24455293]
[1728910926316,0.021648,64915.0,64914.0,0.24455293]
[1728910926735,0.02219818,64915.0,64914.0,0.24455293]
[1728910928739,0.021648,64915.0,64914.0,0.24455293]
[1728910929417,0.021648,64915.0,64914.0,0.16466234]
[1728910930137,0.02219818,64915.0,64914.0,0.16466234]
[1728910930620,0.021648,64915.0,64914.0,0.16466234]
[1728910932595,0.021648,64915.0,64914.0,0.24416234]
[1728910933916,0.012648,64915.0,64914.0,0.16466234]
[1728910934135,0.001648,64915.0,64914.0,0.27530113]
[1728910934386,0.01019818,64915.0,64914.0,0.27530113]
[1728910934854,0.00219818,64915.0,64914.0,0.27530113]
[1728910935319,0.58331133,64915.0,64914.0,0.01261334]
[1728910935527,0.58531133,64915.0,64914.0,0.01261334]
[1728910935737,0.58531133,64915.0,64910.0,0.000824]
[1728910935738,0.1,64914.0,64910.0,0.000824]
[1728910935977,0.00055018,64911.0,64910.0,0.000824]
[1728910936208,0.25407865,64911.0,64910.0,0.000824]
[1728910937332,0.25407865,64911.0,64910.0,0.08908314]
[1728910937977,0.25407865,64911.0,64910.0,0.01196754]
[1728910938397,0.26607865,64911.0,64910.0,0.01196754]
[1728910938859,0.27607865,64911.0,64910.0,0.01196754]
[1728910939072,0.27607865,64911.0,64910.0,0.16602654]
[1728910939943,0.82641231,64911.0,64910.0,0.01196754]
[1728910940194,5.5325481,64911.0,64910.0,0.01196754]
[1728910940416,5.5032997,64911.0,64910.0,0.000824]
[1728910940631,5.43406452,64911.0,64910.0,0.000824]
[1728910940859,5.5143781,64911.0,64910.0,0.000824]
[1728910941094,5.42542691,64911.0,64910.0,0.000824]
[1728910941321,5.43943081,64911.0,64910.0,0.000824]
[1728910941794,5.42543081,64911.0,64910.0,0.000824]
[1728910942045,5.42943081,64911.0,64910.0,0.000824]
[1728910942807,5.44343081,64911.0,64910.0,0.000824]
[1728910943266,5.36810933,64911.0,64910.0,0.000824]
[1728910943492,5.38319194,64911.0,64910.0,0.000824]
[1728910944567,5.45439505,64911.0,64910.0,0.000824]
[1728910944783,5.47550942,64911.0,64910.0,0.000824]
[1728910945005,5.47750942,64911.0,64910.0,0.000824]
[1728910945246,5.47550942,64911.0,64910.0,0.000824]
[1728910945452,5.46150942,64911.0,64910.0,0.000824]
[1728910945670,5.46350942,64911.0,64910.0,0.000824]
[1728910945870,5.47550942,64911.0,64910.0,0.000824]
[1728910946074,5.47744279,64911.0,64910.0,0.000824]
[1728910946313,5.47544279,64911.0,64910.0,0.000824]
[1728910946497,5.46344279,64911.0,64910.0,0.000824]
[1728910946925,5.58172962,64911.0,64910.0,0.000824]
[1728910947136,5.58172962,64911.0,64898.0,0.0169965]
[1728910947137,0.60957286,64899.0,64898.0,0.0169965]
[1728910947357,4.82064533,64899.0,64898.0,0.0169965]
[1728910947812,4.20371333,64899.0,64898.0,0.0169965]
[1728910948286,2.57050133,64899.0,64898.0,0.0169965]
[1728910948497,1.14982433,64899.0,64898.0,0.0169965]
[1728910948714,0.89998333,64899.0,64898.0,0.0169965]
[1728910949830,0.91398333,64899.0,64898.0,0.0169965]
[1728910950283,0.91896692,64899.0,64898.0,0.0169965]
[1728910951880,0.90496692,64899.0,64898.0,0.0169965]
[1728910952316,0.91896692,64899.0,64898.0,0.0169965]
[1728910952521,0.90496692,64899.0,64898.0,0.0169965]
[1728910952763,0.91896692,64899.0,64898.0,0.0169965]
[1728910952985,0.90496692,64899.0,64898.0,0.0169965]
[1728910953211,0.91896692,64899.0,64898.0,0.0169965]
[1728910953632,0.90496692,64899.0,64898.0,0.0169965]
[1728910954077,0.91896692,64899.0,64898.0,0.0169965]
[1728910954500,0.90496692,64899.0,64898.0,0.0169965]
[1728910955128,0.91896692,64899.0,64898.0,0.0169965]
[1728910955360,0.90496692,64899.0,64898.0,0.0169965]
[1728910955795,0.91896692,64899.0,64898.0,0.0169965]
[1728910956689,0.90496692,64899.0,64898.0,0.0169965]
[1728910957134,0.91896692,64899.0,64898.0,0.0169965]
[1728910957570,0.90496692,64899.0,64898.0,0.0169965]
[1728910957783,0.89296692,64899.0,64898.0,0.0169965]
[1728910958018,0.90696692,64899.0,64898.0,0.0169965]
[1728910958234,0.92096692,64899.0,64898.0,0.0169965]
[1728910958474,0.90496692,64899.0,64898.0,0.0169965]
[1728910958693,0.91896692,64899.0,64898.0,0.0169965]
[1728910960684,0.91896692,64899.0,64898.0,0.0178195]
[1728910963851,0.9793611,64899.0,64898.0,0.0178195]
[1728910967611,6.2139961,64899.0,64898.0,0.0178195]
[1728910968024,4.9354941,64899.0,64898.0,0.0178195]
[1728910971548,5.02444529,64899.0,64898.0,0.0178195]
[1728910971781,5.0704392,64899.0,64898.0,0.0178195]
[1728910971998,5.02644529,64899.0,64898.0,0.0178195]
[1728910972470,2.09747024,64899.0,64898.0,0.0178195]
[1728910972669,1.27379017,64899.0,64898.0,0.0178195]
[1728910972881,1.30179017,64899.0,64898.0,0.0178195]
[1728910973289,1.28779017,64899.0,64898.0,0.0178195]
[1728910974257,1.4047561,64899.0,64898.0,0.0178195]
[1728910974778,1.4187561,64899.0,64898.0,0.0178195]
[1728910975030,1.4047561,64899.0,64898.0,0.0178195]
[1728910975279,1.4187561,64899.0,64898.0,0.0178195]
[1728910976027,1.28244517,64899.0,64898.0,0.0178195]
[1728910976262,1.3994111,64899.0,64898.0,0.0178195]
[1728910978950,1.44539292,64899.0,64898.0,0.0178195]
[1728910979211,1.3994111,64899.0,64898.0,0.0178195]
[1728910979464,1.46840197,64899.0,64898.0,0.0178195]
[1728910980466,1.3994111,64899.0,64898.0,0.0178195]
[1728910981221,1.49139603,64899.0,64898.0,0.0178195]
[1728910981474,1.3994082,64899.0,64898.0,0.0178195]
[1728910982442,1.51439299,64899.0,64898.0,0.0178195]
[1728910983338,1.3994082,64899.0,64898.0,0.0178195]
[1728910986284,1.53738995,64899.0,64898.0,0.0178195]
[1728910986525,1.42043719,64899.0,64898.0,0.0178195]
[1728910986777,1.53741339,64899.0,64898.0,0.0028195]
[1728910987016,1.39943164,64899.0,64898.0,0.0028195]
[1728910987723,1.53741339,64899.0,64898.0,0.0028195]
[1728910988209,1.39943164,64899.0,64898.0,0.0028195]
[1728910988545,1.53741339,64899.0,64898.0,0.0028195]
[1728910990486,1.39943164,64899.0,64898.0,0.0028195]
[1728910990952,7.16584164,64899.0,64898.0,0.0028195]
[1728910991462,7.27779283,64899.0,64898.0,0.0028195]
[1728910991688,7.23048062,64899.0,64898.0,0.0028195]
[1728910991916,7.23248062,64899.0,64898.0,0.0028195]
[1728910992162,7.23048062,64899.0,64898.0,0.0028195]
[1728910992446,7.21648062,64899.0,64898.0,0.0028195]
[1728910992950,7.23048062,64899.0,64898.0,0.0028195]
[1728910993195,7.18884164,64899.0,64898.0,0.0028195]
[1728910993446,6.84844664,64899.0,64898.0,0.0028195]
[1728910994649,6.85044664,64899.0,64898.0,0.0028195]
[1728910994915,7.00636661,64899.0,64898.0,0.0028195]
[1728910995148,7.04800559,64899.0,64898.0,0.0028195]
[1728910995380,7.03200559,64899.0,64898.0,0.0028195]
[1728910995581,7.01800559,64899.0,64898.0,0.0028195]
[1728910995838,7.0793178,64899.0,64898.0,0.0028195]
[1728910996051,7.0933178,64899.0,64898.0,0.0062085]
[1728910996476,7.212294,64899.0,64898.0,0.0062085]
[1728910996712,7.04800559,64899.0,64898.0,0.0062085]
[1728910996937,0.154092,64896.0,64895.0,0.000824]
[1728910997157,0.95959925,64896.0,64895.0,0.000824]
[1728910997399,0.45314518,64895.0,64894.0,0.000824]
[1728910997615,6.91801565,64895.0,64894.0,0.000824]
[1728910997845,7.07193219,64895.0,64894.0,0.000824]
[1728910998059,7.11353089,64895.0,64894.0,0.000824]
[1728910998957,7.12753089,64895.0,64894.0,0.000824]
[1728910999394,6.95965463,64895.0,64894.0,0.000824]
[1728910999614,7.11553089,64895.0,64894.0,0.000824]
[1728910999832,6.98565463,64895.0,64894.0,0.000824]
[1728911000076,7.14153089,64895.0,64894.0,0.000824]
[1728911000289,6.98565463,64895.0,64894.0,0.000824]
[1728911000503,6.98765463,64895.0,64894.0,0.000824]
[1728911000723,6.98565463,64895.0,64894.0,0.000824]
[1728911000935,6.98765463,64895.0,64894.0,0.000824]
[1728911001625,7.1908431,64895.0,64894.0,0.000824]
[1728911002478,0.37165638,64880.0,64879.0,0.23169268]
[1728911002695,3.07416685,64880.0,64879.0,0.23169268]
[1728911002917,2.90608685,64880.0,64879.0,0.0088131]
[1728911003128,2.90608685,64880.0,64879.0,0.000824]
[1728911004275,5.47579224,64880.0,64879.0,0.000824]
[1728911004485,5.35230624,64880.0,64879.0,0.000824]
[1728911004950,4.50197626,64880.0,64879.0,0.000824]
[1728911005177,4.44066405,64880.0,64879.0,0.000824]
[1728911005406,4.57919683,64880.0,64879.0,0.000824]
[1728911005631,1.16946465,64880.0,64879.0,0.000824]
[1728911005861,1.26343519,64880.0,64879.0,0.000824]
[1728911006300,1.27743519,64880.0,64879.0,0.000824]
[1728911006797,1.29143519,64880.0,64879.0,0.000824]
[1728911007263,1.11833519,64880.0,64879.0,0.000824]
[1728911007491,1.21053159,64880.0,64879.0,0.000824]
[1728911007715,0.62732935,64880.0,64879.0,0.000824]
[1728911007941,0.54417919,64880.0,64879.0,0.000824]
[1728911008176,0.44417919,64880.0,64879.0,0.0088131]
[1728911008659,0.18707299,64880.0,64879.0,0.0088131]
[1728911008888,0.18652281,64880.0,64879.0,0.06540701]
[1728911009153,0.00499434,64880.0,64879.0,0.07339611]
[1728911009384,0.01899434,64880.0,64879.0,0.1629461]
[1728911009626,0.014,64880.0,64879.0,0.0088131]
[1728911009857,0.13152638,64880.0,64879.0,0.0088131]
[1728911010085,0.14352638,64880.0,64879.0,0.0088131]
[1728911010583,0.24352638,64880.0,64879.0,0.0088131]
[1728911010824,0.57882383,64880.0,64879.0,0.0088131]
[1728911011057,0.58539953,64880.0,64879.0,0.0088131]
[1728911011306,3.93987753,64880.0,64879.0,0.000824]
[1728911011556,3.81069053,64880.0,64879.0,0.000824]
[1728911011789,3.86784069,64880.0,64879.0,0.000824]
[1728911012019,3.79869053,64880.0,64879.0,0.000824]
[1728911012267,4.39600863,64880.0,64879.0,0.000824]
[1728911012517,2.05695378,64880.0,64879.0,0.000824]
[1728911012763,1.88938378,64880.0,64879.0,0.000824]
[1728911013246,1.87538378,64880.0,64879.0,0.000824]
[1728911013464,1.88938378,64880.0,64879.0,0.000824]
[1728911013941,1.87538378,64880.0,64879.0,0.000824]
[1728911014612,1.80625066,64880.0,64879.0,0.000824]
[1728911014854,1.89839961,64880.0,64879.0,0.000824]
[1728911015351,1.88439961,64880.0,64879.0,0.000824]
[1728911015605,1.80625066,64880.0,64879.0,0.000824]
[1728911015849,1.43874518,64880.0,64879.0,0.000824]
[1728911016091,1.42474518,64880.0,64879.0,0.000824]
[1728911016342,1.43874518,64880.0,64879.0,0.000824]
[1728911016811,1.42474518,64880.0,64879.0,0.000824]
[1728911017236,1.1670888,64880.0,64879.0,0.000824]
[1728911017496,0.70439781,64880.0,64879.0,0.0415946]